bitfinex/quotes_SOLUSD_20220114
["timestamp","ask_amount","ask_price","bid_price","bid_amount"]
[1642175330986,6.0,147.41,147.33,31.14142417]
[1642175331385,6.25,147.42,147.33,31.39142417]
[1642175331685,11.81694125,147.43,147.34,12.8919]
[1642175331885,11.81694125,147.43,147.34,14.56134435]
[1642175332084,11.81694125,147.43,147.34,13.1419]
[1642175332486,11.81694125,147.43,147.34,14.81134435]
[1642175332785,11.81694125,147.43,147.34,81.2519]
[1642175333183,11.81694125,147.43,147.34,13.1419]
[1642175333584,6.0,147.43,147.34,13.1419]
[1642175333984,39.46514125,147.47,147.34,13.1419]
[1642175334191,10.1759,147.45,147.34,13.1419]
[1642175334386,2.713,147.44,147.33,9.74]
[1642175334587,2.713,147.44,147.33,0.25]
[1642175334890,8.713,147.44,147.33,0.25]
[1642175335090,6.0,147.44,147.33,0.25]
[1642175335285,2.713,147.43,147.33,24.80246262]
[1642175335491,8.713,147.43,147.33,24.80246262]
[1642175335688,6.0,147.43,147.32,2.713]
[1642175335886,2.714,147.42,147.32,2.713]
[1642175336086,8.714,147.42,147.31,9.74]
[1642175336988,8.714,147.42,147.31,9.99]
[1642175337187,8.714,147.42,147.31,9.74]
[1642175337391,10.1796,147.4,147.28,2.714]
[1642175337589,16.1796,147.4,147.26,2.714]
[1642175337788,12.455,147.39,147.26,2.714]
[1642175337988,18.455,147.39,147.23,80.564]
[1642175338188,41.0641,147.39,147.24,27.65764216]
[1642175338388,41.0641,147.39,147.25,2.715]
[1642175338590,37.14104125,147.39,147.25,2.715]
[1642175338790,37.14104125,147.39,147.27,68.11]
[1642175339089,37.14104125,147.39,147.25,2.715]
[1642175339892,37.14104125,147.39,147.25,2.965]
[1642175340095,10.1813,147.37,147.25,2.715]
[1642175340389,2.715,147.36,147.23,12.8999]
[1642175340589,2.715,147.37,147.23,13.1499]
[1642175340789,6.0,147.36,147.23,13.1499]
[1642175341090,2.715,147.35,147.23,13.1499]
[1642175341290,10.1858,147.31,147.23,2.715]
[1642175341491,10.1858,147.31,147.22,2.715]
[1642175342090,2.716,147.3,147.22,2.715]
[1642175342295,10.866,147.3,147.22,2.715]
[1642175342494,2.716,147.29,147.22,2.715]
[1642175342900,10.1906,147.26,147.22,2.715]
[1642175343293,2.716,147.31,147.22,2.715]
[1642175343592,5.81694125,147.31,147.22,2.715]
[1642175343792,5.81694125,147.31,147.17,2.716]
[1642175343993,8.53294125,147.31,147.17,2.966]
[1642175344193,10.1879,147.28,147.17,13.1554]
[1642175344494,16.4379,147.28,147.17,2.716]
[1642175344696,2.716,147.27,147.13,10.866]
[1642175344896,2.716,147.27,147.13,17.116]
[1642175345096,8.716,147.27,147.13,17.116]
[1642175345294,10.1915,147.23,147.14,24.7664526]
[1642175345493,6.0,147.27,147.15,2.717]
[1642175345693,2.717,147.26,147.15,2.717]
[1642175345895,2.717,147.26,147.15,2.967]
[1642175346096,6.0,147.26,147.15,4.63644435]
[1642175346394,12.9047,147.28,147.15,14.82744435]
[1642175346594,16.1877,147.28,147.15,14.82744435]
[1642175346795,16.1877,147.28,147.15,13.158]
[1642175348397,16.1877,147.28,147.15,15.08744435]
[1642175348601,6.0,147.28,147.16,68.11]
[1642175348799,8.53394125,147.33,147.22,27.82782311]
[1642175349000,11.81694125,147.33,147.23,2.716]
[1642175349623,10.1857,147.32,147.23,2.716]
[1642175349823,10.1857,147.32,147.22,7.572]
[1642175350028,16.1857,147.32,147.22,7.572]
[1642175350228,16.1857,147.32,147.23,29.69816272]
[1642175350424,6.0,147.32,147.23,32.41416272]
[1642175350831,8.716,147.33,147.23,32.41416272]
[1642175351025,6.0,147.33,147.23,32.66416272]
[1642175351429,5.81694125,147.34,147.23,38.92416272]
[1642175351828,5.81694125,147.34,147.25,10.1836]
[1642175352030,11.81694125,147.34,147.25,16.2306]
[1642175352232,6.0,147.34,147.25,16.2306]
[1642175352633,8.715,147.37,147.25,16.2306]
[1642175352831,10.1832,147.35,147.23,2.716]
[1642175353029,2.715,147.34,147.2,8.15]
[1642175353430,8.715,147.34,147.2,8.15]
[1642175353630,8.715,147.34,147.21,2.716]
[1642175353832,10.1849,147.33,147.21,40.4025718]
[1642175354033,2.716,147.32,147.21,40.4025718]
[1642175354234,2.716,147.33,147.21,37.6865718]
[1642175354433,2.715,147.35,147.21,37.6865718]
[1642175354638,2.715,147.35,147.21,37.9365718]
[1642175355234,2.965,147.35,147.21,37.9365718]
[1642175355438,10.1859,147.31,147.21,10.4364]
[1642175355633,10.1859,147.31,147.21,0.25]
[1642175356036,10.1859,147.31,147.2,2.716]
[1642175356534,10.1859,147.31,147.2,2.966]
[1642175356733,11.88667588,147.31,147.2,2.966]
[1642175356935,1.70077588,147.31,147.2,14.82304435]
[1642175357136,2.716,147.32,147.21,68.11]
[1642175357335,16.00164125,147.33,147.21,76.26]
[1642175357336,5.81694125,147.33,147.21,76.26]
[1642175357536,11.81694125,147.33,147.21,82.51]
[1642175357737,5.81694125,147.33,147.21,116.4568]
[1642175357942,11.81694125,147.33,147.21,110.4568]
[1642175358143,12.06694125,147.33,147.21,110.4568]
[1642175358738,10.12991967,147.33,147.21,110.4568]
[1642175359144,10.12991967,147.33,147.21,110.7168]
[1642175359440,6.25,147.33,147.25,34.57264035]
[1642175360045,0.25,147.33,147.25,34.82264035]
[1642175360375,6.25,147.33,147.25,34.82264035]
[1642175360543,6.0,147.33,147.25,34.82264035]
[1642175361041,9.87991967,147.34,147.25,34.82264035]
[1642175361240,3.87991967,147.34,147.25,34.82264035]
[1642175361441,9.87991967,147.34,147.25,34.82264035]
[1642175361640,9.87991967,147.34,147.25,10.4341]
[1642175361840,20.06391967,147.34,147.24,2.715]
[1642175362040,22.77891967,147.34,147.22,2.715]
[1642175362240,20.06391967,147.34,147.21,2.716]
[1642175362441,20.06391967,147.34,147.2,2.716]
[1642175362648,20.06391967,147.34,147.2,25.84467101]
[1642175362843,3.87991967,147.32,147.2,25.84467101]
[1642175363042,10.1865,147.31,147.21,10.1865]
[1642175363245,12.9025,147.31,147.22,2.716]
[1642175363542,16.1865,147.31,147.21,10.1865]
[1642175363742,16.1865,147.31,147.19,2.716]
[1642175363944,2.716,147.3,147.18,2.716]
[1642175364143,2.716,147.3,147.17,31.24002969]
[1642175364344,10.1879,147.29,147.17,35.42912969]
[1642175364643,10.1879,147.29,147.18,2.716]
[1642175364843,10.1879,147.29,147.17,2.716]
[1642175365044,2.717,147.28,147.15,2.717]
[1642175365246,10.867,147.28,147.13,2.717]
[1642175365443,10.1913,147.24,147.13,10.1919]
[1642175365644,10.1913,147.24,147.14,2.717]
[1642175366645,10.1913,147.24,147.13,2.717]
[1642175367046,10.1913,147.24,147.13,2.967]
[1642175367877,16.4413,147.24,147.13,2.967]
[1642175368146,8.15,147.23,147.13,2.717]
[1642175368349,10.1943,147.19,147.13,2.717]
[1642175368548,10.1943,147.19,147.13,1.717]
[1642175369047,16.1943,147.19,147.13,1.717]
[1642175369448,16.1943,147.19,147.08,2.718]
[1642175370350,16.1943,147.19,147.08,10.1954]
[1642175370548,27.0623,147.19,147.09,2.718]
[1642175370748,27.0623,147.19,147.04,2.718]
[1642175370951,34.6563,147.19,147.03,5.61241793]
[1642175371148,34.6563,147.19,147.03,2.89441793]
[1642175371951,30.94221967,147.19,147.02,2.719]
[1642175372849,30.94221967,147.19,147.02,8.719]
[1642175373051,27.0623,147.19,147.03,10.1993]
[1642175373457,27.0623,147.19,147.03,10.4493]
[1642175373657,27.0623,147.19,147.03,10.1993]
[1642175373853,3.87991967,147.18,147.03,10.1993]
[1642175374053,10.1996,147.12,147.03,10.1993]
[1642175374458,6.0,147.12,147.03,10.1993]
[1642175374855,6.0,147.12,147.03,10.4493]
[1642175375055,0.25,147.12,147.03,10.4493]
[1642175375483,16.448,147.14,147.04,12.9172]
[1642175375986,16.448,147.14,147.04,13.1672]
[1642175376184,16.448,147.14,147.04,10.4482]
[1642175377086,6.25,147.14,147.04,78.5582]
[1642175377287,6.25,147.14,147.04,84.9432]
[1642175377487,0.25,147.14,147.04,84.9432]
[1642175377885,16.1969,147.16,147.04,84.9432]
[1642175378489,16.4469,147.16,147.04,84.9432]
[1642175378687,16.1969,147.16,147.04,84.9432]
[1642175379087,6.0,147.16,147.04,85.2032]
[1642175379287,6.0,147.16,147.09,10.1952]
[1642175379488,38.8705,147.18,147.09,15.8162]
[1642175379688,6.0,147.18,147.09,15.8162]
[1642175379892,6.0,147.18,147.1,2.718]
[1642175380087,6.0,147.19,147.1,2.968]
[1642175380288,9.87991967,147.21,147.13,10.1924]
[1642175380490,9.87991967,147.21,147.13,16.7154]
[1642175380693,6.0,147.21,147.13,16.7154]
[1642175380992,40.2554,147.22,147.13,16.7154]
[1642175381190,16.1927,147.22,147.13,19.4324]
[1642175381590,16.4427,147.22,147.13,9.24]
[1642175381790,16.4427,147.22,147.11,12.9104]
[1642175381991,16.4427,147.22,147.11,10.4434]
[1642175382191,2.718,147.21,147.11,10.4434]
[1642175382394,10.1939,147.2,147.1,2.718]
[1642175382591,12.9119,147.2,147.1,2.718]
[1642175382791,18.9119,147.2,147.1,2.718]
[1642175383994,19.1619,147.2,147.1,2.718]
[1642175384893,68.11,147.19,147.07,2.718]
[1642175385093,10.868,147.18,147.06,10.1967]
[1642175385295,10.1977,147.14,147.06,10.1967]
[1642175385693,16.1977,147.14,147.06,10.1967]
[1642175386697,16.1977,147.14,147.06,10.4467]
[1642175387096,6.0,147.14,147.06,10.1967]
[1642175387294,6.0,147.14,147.08,10.1958]
[1642175387496,10.1967,147.16,147.08,10.4458]
[1642175387693,12.02991967,147.18,147.08,10.4458]
[1642175387900,1.94198933,147.15,147.08,10.4458]
[1642175388098,7.94198933,147.15,147.08,10.4458]
[1642175389496,6.0,147.15,147.08,10.4458]
[1642175389697,6.25,147.15,147.08,10.4458]
[1642175389897,0.25,147.15,147.08,10.4458]
[1642175390099,6.0,147.15,147.08,10.4458]
[1642175390297,6.25,147.15,147.08,10.4458]
[1642175390501,0.25,147.15,147.08,10.4458]
[1642175390699,6.25,147.15,147.08,10.4458]
[1642175390899,6.0,147.15,147.08,10.4458]
[1642175391101,6.25,147.15,147.08,10.4458]
[1642175391305,0.25,147.15,147.08,10.4458]
[1642175391501,6.0,147.15,147.08,10.4458]
[1642175391700,6.25,147.15,147.08,10.4458]
[1642175392001,0.25,147.15,147.08,10.4458]
[1642175392201,16.1964,147.16,147.08,10.4458]
[1642175392803,16.1964,147.16,147.07,2.718]
[1642175393301,16.4464,147.16,147.07,2.718]
[1642175393701,18.38838933,147.16,147.07,2.718]
[1642175394301,18.38838933,147.16,147.07,12.9144]
[1642175394503,7.94198933,147.16,147.07,10.1964]
[1642175394703,1.94198933,147.15,147.08,2.718]
[1642175394905,1.94198933,147.15,147.08,10.936]
[1642175395204,1.94198933,147.15,147.08,11.186]
[1642175395602,1.94198933,147.15,147.11,10.1927]
[1642175395803,1.94198933,147.19,147.13,23.44272368]
[1642175396003,7.94198933,147.19,147.13,23.69272368]
[1642175396202,1.94198933,147.19,147.13,23.69272368]
[1642175396803,1.94198933,147.19,147.13,0.25]
[1642175397004,6.0,147.19,147.12,0.25]
[1642175397203,7.94198933,147.21,147.12,0.25]
[1642175397403,7.94198933,147.21,147.11,1.79378626]
[1642175397604,8.19198933,147.21,147.11,1.79378626]
[1642175398012,8.19198933,147.21,147.13,10.1918]
[1642175398205,8.19198933,147.21,147.13,17.5098]
[1642175398405,2.19198933,147.21,147.13,85.8698]
[1642175398606,1.94198933,147.2,147.13,85.8698]
[1642175399009,1.94198933,147.2,147.13,92.1298]
[1642175399206,1.94198933,147.2,147.14,9.79]
[1642175399406,0.18408933,147.2,147.18,27.24911215]
[1642175399606,0.18408933,147.2,147.19,8.78139993]
[1642175399808,3.87991967,147.26,147.19,8.78139993]
[1642175400006,3.87991967,147.26,147.19,9.03139993]
[1642175400507,3.87991967,147.26,147.19,19.21689993]
[1642175400709,3.87991967,147.26,147.2,68.11]
[1642175401110,3.88117532,147.29,147.2,68.62]
[1642175401309,6.0,147.28,147.2,68.62]
[1642175401511,9.88117532,147.29,147.2,68.62]
[1642175401720,3.88117532,147.29,147.2,68.36]
[1642175401908,9.88117532,147.29,147.23,10.1839]
[1642175402109,6.0,147.29,147.23,10.1839]
[1642175402507,0.25,147.29,147.23,10.1839]
[1642175402709,0.25,147.29,147.24,31.28924979]
[1642175402918,15.79,147.31,147.24,41.47394979]
[1642175403108,16.04,147.31,147.24,41.72394979]
[1642175403809,16.04,147.31,147.24,10.1847]
[1642175404810,16.04,147.31,147.24,35.50909959]
[1642175405111,6.25,147.31,147.24,35.50909959]
[1642175405310,6.25,147.31,147.24,35.75909959]
[1642175405511,55.2542,147.33,147.24,35.75909959]
[1642175405713,8.716,147.33,147.24,35.75909959]
[1642175405910,6.0,147.33,147.27,10.1822]
[1642175406311,6.0,147.34,147.27,10.1822]
[1642175406514,18.505,147.36,147.27,10.1822]
[1642175406711,10.183,147.35,147.24,25.32439959]
[1642175406914,2.715,147.34,147.24,25.32439959]
[1642175407113,8.965,147.35,147.24,25.32439959]
[1642175407313,2.965,147.35,147.24,31.32439959]
[1642175407514,8.965,147.35,147.25,10.1838]
[1642175408320,10.1846,147.33,147.25,10.1838]
[1642175408515,16.1846,147.33,147.25,10.1838]
[1642175408916,16.1846,147.33,147.23,10.185]
[1642175409146,16.1846,147.33,147.22,2.965]
[1642175409317,2.716,147.32,147.22,0.25]
[1642175409517,6.0,147.32,147.22,0.25]
[1642175409716,10.1864,147.3,147.22,0.25]
[1642175410116,16.1864,147.3,147.22,0.25]
[1642175410318,16.1864,147.3,147.21,2.716]
[1642175410517,6.0,147.3,147.21,13.1523]
[1642175410717,6.25,147.3,147.21,13.1523]
[1642175410918,0.25,147.3,147.21,13.1523]
[1642175411120,6.0,147.3,147.21,13.1523]
[1642175411523,6.25,147.31,147.21,2.716]
[1642175411724,2.716,147.3,147.19,2.716]
[1642175411924,22.6925,147.3,147.14,2.716]
[1642175412121,28.6925,147.3,147.14,2.716]
[1642175412420,28.6925,147.3,147.15,25.2858507]
[1642175412621,28.6925,147.3,147.16,12.9062]
[1642175413026,7.75309312,147.29,147.16,13.1562]
[1642175413222,10.1904,147.25,147.16,2.966]
[1642175413722,16.1904,147.25,147.16,2.966]
[1642175414823,16.1904,147.25,147.16,0.25]
[1642175415026,16.1904,147.25,147.13,2.967]
[1642175416025,16.4404,147.25,147.13,2.967]
[1642175416225,16.4404,147.25,147.13,2.717]
[1642175416427,26.2304,147.25,147.13,2.717]
[1642175416662,2.717,147.24,147.12,2.717]
[1642175416953,10.1938,147.2,147.12,2.717]
[1642175417152,10.1938,147.2,147.11,2.717]
[1642175417353,16.1938,147.2,147.1,2.718]
[1642175417552,16.1938,147.2,147.1,12.912]
[1642175418552,9.79,147.23,147.1,13.162]
[1642175418752,9.79,147.23,147.11,68.11]
[1642175418952,9.79,147.23,147.12,2.717]
[1642175419152,9.79,147.23,147.17,10.189]
[1642175419353,9.79,147.23,147.17,15.904]
[1642175419554,9.79,147.23,147.18,2.717]
[1642175419954,9.79,147.23,147.18,0.25]
[1642175420152,19.9795,147.26,147.18,0.25]
[1642175420352,19.9795,147.26,147.18,10.4388]
[1642175420553,19.9795,147.26,147.17,2.717]
[1642175420753,19.9795,147.26,147.15,2.717]
[1642175420955,2.717,147.25,147.12,2.717]
[1642175421252,10.1928,147.21,147.11,49.6381]
[1642175421454,10.1928,147.21,147.11,2.717]
[1642175421655,16.4428,147.21,147.11,26.37277762]
[1642175421854,16.4428,147.21,147.12,2.718]
[1642175422055,16.4428,147.21,147.12,0.25]
[1642175422453,16.4428,147.21,147.12,10.4426]
[1642175422954,16.4428,147.21,147.12,0.25]
[1642175423153,16.4428,147.21,147.1,2.718]
[1642175423355,12.508,147.2,147.1,2.718]
[1642175423555,10.198,147.15,147.1,2.718]
[1642175423755,2.718,147.14,147.04,3.59916613]
[1642175424154,8.718,147.14,147.04,3.59916613]
[1642175424356,6.0,147.14,147.04,3.59916613]
[1642175424561,6.0,147.14,147.03,2.718]
[1642175424758,12.509,147.15,147.03,2.718]
[1642175424955,18.509,147.15,147.03,2.968]
[1642175425157,18.759,147.15,147.03,2.968]
[1642175425359,10.1993,147.12,147.03,10.4493]
[1642175425558,16.1993,147.12,147.04,2.719]
[1642175425959,16.1993,147.12,147.04,2.969]
[1642175427163,16.1993,147.12,147.04,2.719]
[1642175427362,25.9893,147.12,147.01,2.719]
[1642175427560,28.7083,147.12,147.01,2.719]
[1642175429962,28.7083,147.12,147.0,36.87343127]
[1642175430566,28.7083,147.12,147.0,37.12343127]
[1642175431364,15.79,147.12,147.06,10.1971]
[1642175431669,15.79,147.12,147.06,18.2851]
[1642175432267,15.79,147.12,147.06,8.088]
[1642175432864,15.79,147.12,147.04,10.1982]
[1642175433066,15.79,147.12,147.04,10.4482]
[1642175434870,26.2391,147.12,147.04,10.4482]
[1642175435270,26.2391,147.12,147.04,0.25]
[1642175435570,26.2391,147.12,147.03,2.719]
[1642175436067,26.2391,147.12,147.03,2.969]
[1642175436269,26.2391,147.12,147.03,6.25]
[1642175436469,26.2391,147.12,147.03,0.25]
[1642175437072,26.2391,147.12,147.01,2.969]
[1642175437474,26.2391,147.12,147.03,10.1993]
[1642175437671,26.2391,147.12,147.01,2.969]
[1642175438475,26.2391,147.12,147.01,2.719]
[1642175438674,2.719,147.11,147.01,2.719]
[1642175438977,10.2031,147.07,147.01,2.719]
[1642175439175,10.2031,147.07,146.99,2.719]
[1642175439379,16.2031,147.07,147.0,3.59916613]
[1642175439978,16.4531,147.07,147.0,3.59916613]
[1642175440880,6.25,147.07,147.0,3.59916613]
[1642175441079,2.719,147.11,147.0,10.94208608]
[1642175441279,2.72,147.13,147.01,2.72]
[1642175441580,6.0,147.13,147.01,80.88]
[1642175441782,6.0,147.14,147.01,80.88]
[1642175441981,9.87654656,147.15,147.01,81.13]
[1642175442182,30.5671,147.17,147.01,81.13]
[1642175442381,10.1977,147.15,147.05,10.1979]
[1642175442588,10.1977,147.15,147.06,2.719]
[1642175442784,24.5671,147.17,147.06,2.719]
[1642175443012,24.5671,147.17,147.06,2.969]
[1642175443410,34.7634,147.17,147.06,13.1658]
[1642175443611,24.5671,147.17,147.06,13.1658]
[1642175444212,9.79,147.18,147.06,13.1658]
[1642175444419,10.04,147.18,147.06,13.1658]
[1642175445414,20.2352,147.18,147.06,13.1658]
[1642175445613,26.2352,147.18,147.06,13.1658]
[1642175446916,2.718,147.17,147.06,13.1658]
[1642175447115,10.1971,147.16,147.06,10.4468]
[1642175447515,6.0,147.16,147.06,10.4468]
[1642175447718,2.718,147.17,147.06,10.4468]
[1642175447918,6.0,147.17,147.07,2.718]
[1642175448116,6.0,147.17,147.11,10.1939]
[1642175448316,6.0,147.17,147.11,16.1989]
[1642175448516,30.2765,147.18,147.11,16.4489]
[1642175449016,6.0,147.18,147.11,16.4489]
[1642175449416,3.87654656,147.22,147.15,10.1906]
[1642175449618,3.87654656,147.22,147.16,23.40282296]
[1642175450017,3.87654656,147.22,147.16,23.65282296]
[1642175450221,3.87654656,147.25,147.16,23.65282296]
[1642175450430,3.87654656,147.25,147.17,2.717]
[1642175450819,9.87654656,147.25,147.17,2.967]
[1642175451018,9.87654656,147.25,147.18,10.189]
[1642175451219,6.0,147.25,147.18,15.741]
[1642175451420,6.0,147.25,147.18,15.991]
[1642175451718,61.8473,147.28,147.18,15.991]
[1642175452319,55.8473,147.28,147.18,15.991]
[1642175452518,46.0573,147.28,147.18,15.991]
[1642175453119,74.4785,147.29,147.18,15.991]
[1642175453520,74.4785,147.29,147.18,90.361]
[1642175453722,6.59354656,147.31,147.18,90.361]
[1642175453921,3.87654656,147.31,147.18,90.361]
[1642175454623,54.88224656,147.33,147.18,90.361]
[1642175454820,60.88224656,147.33,147.18,90.361]
[1642175455021,61.13224656,147.33,147.18,90.361]
[1642175455625,61.13224656,147.33,147.19,71.99010441]
[1642175455823,36.88414656,147.33,147.26,26.09716105]
[1642175456025,9.87654656,147.33,147.26,34.01416105]
[1642175456823,9.87654656,147.33,147.27,10.1822]
[1642175458225,6.0,147.33,147.27,10.1822]
[1642175458624,35.41874656,147.35,147.27,10.4322]
[1642175458928,32.70374656,147.35,147.27,10.4322]
[1642175459123,28.3272,147.35,147.27,10.4322]
[1642175460330,28.5772,147.35,147.27,10.4322]
[1642175461534,28.5772,147.35,147.26,7.667]
[1642175461727,2.715,147.34,147.2,3.59916613]
[1642175461931,2.715,147.34,147.21,2.716]
[1642175462129,8.715,147.34,147.21,2.716]
[1642175462329,3.88017456,147.33,147.21,2.716]
[1642175462532,2.716,147.32,147.21,30.98211806]
[1642175462732,2.716,147.32,147.21,28.26611806]
[1642175462943,2.716,147.32,147.21,28.51611806]
[1642175463432,12.9017,147.32,147.23,10.1852]
[1642175463930,18.9017,147.32,147.23,16.2002]
[1642175464331,18.9017,147.32,147.21,0.25]
[1642175464531,18.9017,147.32,147.2,2.966]
[1642175464731,28.6917,147.32,147.2,2.966]
[1642175465033,28.6917,147.32,147.18,23.1825]
[1642175465034,28.6917,147.32,147.19,2.716]
[1642175465332,28.6917,147.32,147.14,5.3987492]
[1642175465731,32.56824656,147.32,147.18,23.32465791]
[1642175465933,68.11,147.31,147.18,23.32465791]
[1642175466130,12.506,147.3,147.18,23.32465791]
[1642175466333,9.79,147.29,147.19,2.716]
[1642175466531,3.87654656,147.28,147.19,2.966]
[1642175466730,9.79,147.27,147.19,2.966]
[1642175467133,3.87654656,147.28,147.19,13.1542]
[1642175467431,51.46364656,147.3,147.19,13.1542]
[1642175467633,28.60974656,147.3,147.2,68.11]
[1642175467837,28.60974656,147.3,147.21,2.716]
[1642175468040,24.7332,147.3,147.21,8.966]
[1642175468236,24.7332,147.3,147.21,2.966]
[1642175468436,24.9832,147.3,147.21,2.966]
[1642175468639,24.9832,147.3,147.21,2.716]
[1642175468837,30.9832,147.3,147.21,2.716]
[1642175469039,30.9832,147.3,147.21,2.966]
[1642175469666,30.7332,147.3,147.21,10.427]
[1642175469867,24.7332,147.3,147.21,20.6133]
[1642175470971,24.9832,147.3,147.21,20.6133]
[1642175471671,30.9832,147.3,147.19,2.716]
[1642175471869,30.9832,147.3,147.18,3.59916613]
[1642175471870,10.1903,147.26,147.18,3.59916613]
[1642175472069,16.1903,147.26,147.18,3.59916613]
[1642175472269,6.0,147.26,147.18,3.59916613]
[1642175472470,32.3574,147.29,147.18,3.59916613]
[1642175472670,29.6414,147.29,147.19,2.716]
[1642175472871,33.51794656,147.29,147.18,30.65312593]
[1642175473172,33.51794656,147.29,147.19,2.716]
[1642175473370,10.1891,147.28,147.19,2.716]
[1642175473571,18.9051,147.28,147.19,2.716]
[1642175475682,10.1917,147.24,147.19,2.716]
[1642175476071,16.1917,147.24,147.19,2.716]
[1642175476875,16.1917,147.24,147.13,6.31616613]
[1642175477075,16.1917,147.24,147.13,6.56616613]
[1642175477475,16.1917,147.24,147.13,2.967]
[1642175478375,12.507,147.23,147.11,3.59916613]
[1642175478675,10.196,147.18,147.11,3.59916613]
[1642175478875,10.196,147.18,147.11,3.88221806]
[1642175479075,16.196,147.18,147.11,3.88221806]
[1642175479778,16.196,147.18,147.1,2.717]
[1642175479975,10.1992,147.13,147.08,3.59916613]
[1642175480378,16.1992,147.13,147.08,3.59916613]
[1642175480577,16.1992,147.13,147.06,7.48239041]
[1642175481175,16.1992,147.13,147.06,3.59916613]
[1642175481378,16.1992,147.13,147.06,0.25]
[1642175481575,16.1992,147.13,147.05,3.84916613]
[1642175483577,16.1992,147.13,147.05,6.56816613]
[1642175484777,16.1992,147.13,147.06,3.88339831]
[1642175484978,16.1992,147.13,147.06,4.13339831]
[1642175485778,16.1992,147.13,147.06,0.25]
[1642175486279,16.1992,147.13,147.05,0.25]
[1642175486476,16.1992,147.13,147.04,16.76686613]
[1642175486679,16.4492,147.13,147.04,16.76686613]
[1642175487078,6.25,147.13,147.04,16.76686613]
[1642175487280,6.0,147.13,147.05,3.88414485]
[1642175487479,55.4966,147.17,147.08,10.1957]
[1642175487679,55.4966,147.17,147.08,18.0097]
[1642175487680,62.5686,147.17,147.08,18.0097]
[1642175488079,62.5686,147.17,147.09,30.09709774]
[1642175488479,62.5686,147.17,147.09,30.34709774]
[1642175488682,62.5686,147.17,147.09,0.25]
[1642175488879,62.5686,147.17,147.07,13.79516613]
[1642175489179,62.5686,147.17,147.07,14.04516613]
[1642175489381,72.7649,147.17,147.07,3.59916613]
[1642175489679,2.718,147.16,147.07,3.59916613]
[1642175489879,2.718,147.16,147.06,6.31816613]
[1642175490082,8.718,147.16,147.06,6.56816613]
[1642175490380,10.1987,147.14,147.06,6.31816613]
[1642175490579,16.1987,147.14,147.06,6.31816613]
[1642175490981,16.1987,147.14,147.06,2.719]
[1642175491484,16.1987,147.14,147.06,2.969]
[1642175492987,16.1987,147.14,147.06,0.25]
[1642175493183,16.1987,147.14,147.04,16.76686613]
[1642175493383,16.1987,147.14,147.04,14.04786613]
[1642175494083,16.1987,147.14,147.05,3.87016653]
[1642175494583,16.1987,147.14,147.05,4.12016653]
[1642175495286,16.1987,147.14,147.04,3.59916613]
[1642175495487,12.509,147.13,147.04,3.59916613]
[1642175495686,10.2026,147.09,147.04,3.59916613]
[1642175496087,63.0,147.07,146.98,5.3987492]
[1642175496287,2.72,147.06,146.98,5.3987492]
[1642175496489,9.79,147.05,146.98,5.3987492]
[1642175496687,2.72,147.04,146.98,5.3987492]
[1642175497187,10.2066,147.03,146.98,5.3987492]